bitfinex-derivatives/quotes_ETHF0:USTF0_20250518
["timestamp","ask_amount","ask_price","bid_price","bid_amount"]
[1747607938407,3.2078,2425.9,2425.8,15.4234]
[1747607938610,4.03179,2425.9,2425.8,15.4234]
[1747607938905,3.2078,2425.9,2425.8,15.4234]
[1747607939905,0.82397,2426.0,2425.8,15.4234]
[1747607940607,0.82394,2426.1,2425.8,16.24742]
[1747607940812,0.82396,2426.0,2425.8,15.4234]
[1747607941111,3.2078,2426.6,2425.8,15.4234]
[1747607941403,0.82377,2426.6,2426.1,3.2078]
[1747607941611,0.82386,2426.3,2426.2,2.6589]
[1747607941812,3.2078,2426.3,2425.6,37.8348]
[1747607942003,0.82389,2426.2,2425.9,2.04556133]
[1747607942201,0.82393,2426.1,2426.0,2.6589]
[1747607942907,0.82396,2426.0,2425.9,1.22158133]
[1747607943108,9.33396,2426.0,2425.9,1.22158133]
[1747607943509,0.82406,2425.7,2425.6,37.2859]
[1747607943705,4.03186,2425.7,2425.6,37.41472228]
[1747607943909,4.03186,2425.7,2425.6,0.12882228]
[1747607944210,0.8241,2425.6,2425.4,1.61540409]
[1747607944405,0.8241,2425.6,2425.5,1.33698199]
[1747607944406,3.3064,2425.6,2425.5,1.33698199]
[1747607944616,3.3064,2425.6,2425.5,1.20814365]
[1747607944803,9.856,2425.9,2425.5,1.33698804]
[1747607945107,3.2078,2425.7,2425.6,13.07383036]
[1747607945305,3.2078,2425.7,2425.6,15.55593036]
[1747607945502,4.03186,2425.7,2425.6,2.61093036]
[1747607945812,3.2078,2425.7,2425.6,15.55593036]
[1747607946211,4.03186,2425.7,2425.6,15.55593036]
[1747607946810,4.03186,2425.7,2425.6,0.12883036]
[1747607947016,3.2078,2425.7,2425.4,12.945]
[1747607947216,3.5668,2425.6,2425.5,0.12884289]
[1747607948710,3.5668,2425.6,2425.2,15.6356]
[1747607948711,0.8242,2425.3,2425.2,2.6906]
[1747607949019,0.8242,2425.3,2425.2,0.12884356]
[1747607949517,3.2078,2425.4,2425.2,0.12884356]
[1747607949817,3.2078,2425.4,2425.3,2.81944356]
[1747607950014,9.37568,2425.7,2425.3,2.81944356]
[1747607950212,8.5516,2425.7,2425.4,0.12884356]
[1747607950514,0.82413,2425.6,2425.5,2.81304356]
[1747607950719,3.29713,2425.6,2425.5,2.81304356]
[1747607951717,3.29713,2425.6,2425.5,0.12884356]
[1747607951921,0.82436,2424.9,2424.7,2.6842]
[1747607952113,0.82436,2424.9,2424.8,0.12885888]
[1747607952415,0.82432,2425.0,2424.8,0.12886295]
[1747607952617,3.2078,2425.1,2424.9,2.81306295]
[1747607952920,0.82427,2425.1,2425.0,0.12886295]
[1747607954122,2.473,2425.2,2425.0,0.12886295]
[1747607954420,3.2078,2425.4,2424.6,12.946]
[1747607954421,3.2078,2425.4,2425.1,15.62724794]
[1747607954720,4.03196,2425.4,2425.2,0.12884794]
[1747607954921,3.2078,2425.4,2425.3,2.68124794]
[1747607955221,5.8656,2425.7,2425.3,2.68124794]
[1747607955422,0.82413,2425.5,2425.4,0.12884794]
[1747607955918,0.82433,2424.9,2424.8,2.5926]
[1747607956116,4.03213,2424.9,2424.8,2.72146743]
[1747607956522,4.03213,2424.9,2424.8,0.12886743]
[1747607957615,0.82447,2424.5,2424.1,34.626]
[1747607957821,4.03234,2424.3,2424.2,2.72148644]
[1747607958022,3.2078,2424.3,2424.2,2.5926]
[1747607958213,16.0608,2424.7,2424.2,2.7215012]
[1747607958414,0.8245,2424.4,2424.3,0.1289012]
[1747607958912,0.82454,2424.3,2424.2,2.5926]
[1747607959110,5.2137,2424.6,2424.2,2.72150434]
[1747607959310,4.03215,2424.9,2424.5,0.82446]
[1747607959513,9.856,2425.1,2424.6,2.76588661]
[1747607959514,0.8243,2425.0,2424.6,2.76588661]
[1747607959715,0.82435,2424.9,2424.7,0.12888661]
[1747607959929,0.82435,2424.9,2424.8,2.76587006]
[1747607960324,3.29675,2424.9,2424.8,2.637]
[1747607960718,3.29675,2424.9,2424.8,2.76587137]
[1747607960920,3.2078,2425.0,2424.8,2.76587137]
[1747607961120,3.2078,2425.0,2424.9,0.12887137]
[1747607961631,3.2078,2425.0,2424.9,2.76587137]
[1747607961924,4.0321,2425.0,2424.9,2.765859]
[1747607962115,0.8243,2425.0,2424.9,2.765859]
[1747607962320,0.82428,2425.1,2424.9,2.765859]
[1747607962527,0.82428,2425.1,2424.9,2.637]
[1747607962718,3.2078,2425.3,2424.9,2.637]
[1747607963222,3.2078,2425.3,2425.2,0.82423]
[1747607963413,3.2078,2425.3,2425.2,13.90206409]
[1747607963627,4.03440656,2425.8,2425.2,13.07783409]
[1747607963821,5.9076,2425.9,2425.3,2.6001]
[1747607964020,3.2078,2425.9,2425.3,15.4281]
[1747607964225,6.09382656,2426.6,2425.5,3.2078]
[1747607964226,3.2078,2426.3,2425.5,3.2078]
[1747607964423,3.2078,2426.3,2425.6,2.6001]
[1747607964622,0.82406,2425.7,2425.6,2.6001]
[1747607965234,0.82414,2425.5,2425.3,47.583]
[1747607965420,9.856,2426.2,2425.4,2.5518]
[1747607965624,0.824,2425.9,2425.5,13.7721]
[1747607965825,4.03184,2425.8,2425.4,13.77214]
[1747607966130,3.2078,2426.1,2425.6,0.82409]
[1747607966426,5.814,2426.1,2425.7,2.5518]
[1747607967230,0.82403,2425.8,2425.7,2.5518]
[1747607967425,0.82403,2425.8,2425.7,2.68061427]
[1747607967729,0.82402,2425.9,2425.7,2.68061427]
[1747607967926,5.814,2426.1,2425.8,0.12881427]
[1747607968233,0.82396,2426.0,2425.9,0.12881253]
[1747607968619,0.82401,2425.9,2425.7,2.5518]
[1747607968930,5.814,2426.1,2425.8,0.12881221]
[1747607969233,0.82403,2425.9,2425.7,2.5518]
[1747607969529,0.82403,2425.9,2425.8,0.12881158]
[1747607969730,5.814,2426.1,2425.8,0.12881158]
[1747607969932,6.63795,2426.1,2425.9,2.7033]
[1747607970326,0.82396,2426.0,2425.9,2.7033]
[1747607970528,0.82396,2426.0,2425.9,2.83211029]
[1747607970729,0.82396,2426.0,2425.9,2.7033]
[1747607971433,0.82401,2425.9,2425.6,12.948]
[1747607971635,0.82403,2425.8,2425.7,0.12881739]
[1747607971833,2.5812,2426.0,2425.7,2.77061798]
[1747607972033,2.5812,2426.0,2425.7,2.6418]
[1747607972528,0.82403,2425.8,2425.7,2.6418]
[1747607972729,0.82413,2425.5,2425.4,12.809]
[1747607972930,4.03193,2425.5,2425.4,12.809]
[1747607973137,0.82416,2425.4,2425.3,34.635]
[1747607973936,3.40536,2425.4,2425.3,34.635]
[1747607974433,0.82429,2425.1,2425.0,12.809]
[1747607974732,2.5812,2425.4,2425.0,13.76215443]
[1747607974933,0.82422,2425.3,2425.1,0.12885443]
[1747607975134,0.82422,2425.3,2425.0,13.6333]
[1747607975135,0.82422,2425.3,2425.2,0.12885443]
[1747607975535,4.70001,2425.7,2425.2,0.12884801]
[1747607975536,2.6398,2425.7,2425.2,0.12884801]
[1747607975839,3.28816,2425.4,2425.3,0.12884801]
[1747607976239,0.82416,2425.5,2425.3,0.12884801]
[1747607976442,0.8241,2425.6,2425.4,2.61853866]
[1747607976632,0.82413,2425.5,2425.4,2.4897]
[1747607976831,0.82413,2425.5,2425.4,2.61853539]
[1747607977232,2.6398,2425.7,2425.4,2.61853539]
[1747607977431,3.2078,2426.2,2425.5,2.18909823]
[1747607977631,3.2078,2426.2,2425.6,15.54331823]
[1747607977836,0.82397,2426.0,2425.7,0.12881823]
[1747607978035,5.8905,2426.6,2426.2,0.82386]
[1747607978234,2.6827,2426.6,2426.3,2.6055]
[1747607978436,5.1578,2426.7,2426.3,2.6055]
[1747607978737,5.1578,2426.7,2426.4,0.1287802]
[1747607978938,0.82378,2426.6,2426.5,2.6055]
[1747607979731,3.2078,2426.8,2426.5,2.6055]
[1747607979932,3.2078,2426.8,2426.5,3.42928]
[1747607980534,3.2078,2426.8,2426.5,2.6055]
[1747607980735,3.2078,2426.8,2426.5,3.42928]
[1747607980940,4.03440656,2427.0,2426.7,0.82372]
[1747607981240,4.03440656,2427.0,2426.4,12.808]
[1747607981241,4.85802656,2427.0,2426.8,2.4952]
[1747607981439,4.0314,2427.1,2426.9,12.808]
[1747607981743,3.2078,2427.1,2427.0,2.4952]
[1747607982040,4.03139,2427.1,2427.0,2.4952]
[1747607982243,0.8237,2426.8,2426.4,0.82381]
[1747607982541,3.2078,2426.8,2426.5,2.4952]
[1747607982741,2.5704,2426.7,2426.5,2.4952]
[1747607983540,0.82376,2426.6,2426.2,15.3626]
[1747607983731,0.82376,2426.6,2426.5,2.6864]
[1747607984739,3.2078,2426.8,2426.5,3.51018]
[1747607984941,0.8237,2426.8,2426.5,2.6864]
[1747607985139,0.82374,2426.7,2426.5,2.6864]
[1747607985441,3.2078,2426.6,2426.2,2.5566]
[1747607985641,0.82379,2426.5,2426.3,15.4914]
[1747607985840,5.7574,2426.6,2426.3,15.4914]
[1747607986038,2.5496,2426.6,2426.3,15.4914]
[1747607986242,0.82364,2427.0,2426.3,15.4914]
[1747607986536,0.82369,2426.8,2426.3,15.4914]
[1747607986742,3.2078,2426.9,2426.3,15.4914]
[1747607986939,3.2078,2426.6,2426.3,2.6864]
[1747607987140,2.4811,2426.8,2426.4,13.62881]
[1747607987141,3.30481,2426.8,2426.4,13.62881]
[1747607987337,2.4811,2426.8,2426.5,2.5484]
[1747607987942,0.82374,2426.7,2426.5,2.5484]
[1747607988134,0.8237,2426.8,2426.5,2.5484]
[1747607988330,3.2078,2426.9,2426.5,2.5484]
[1747607988540,4.03146,2426.9,2426.5,2.5484]
[1747607989046,4.03146,2426.9,2426.5,3.37216]
[1747607989847,4.03148,2426.9,2426.5,2.5484]
[1747607990038,0.8237,2426.8,2426.5,2.5484]
[1747607990344,0.82369,2426.8,2426.5,3.37216]
[1747607990539,3.2078,2426.9,2426.5,2.5484]
[1747607990743,3.2078,2426.9,2426.6,0.82374]
[1747607990943,3.2078,2426.9,2426.7,2.6288]
[1747607991247,3.2078,2426.9,2426.7,3.4525]
[1747607991439,3.2078,2426.9,2426.7,2.6288]
[1747607991640,4.03146,2426.9,2426.8,2.6288]
[1747607993045,0.82371,2426.8,2426.4,12.805]
[1747607993244,3.30461,2426.8,2426.5,3.60293755]
[1747607993542,3.30461,2426.8,2426.6,0.12876755]
[1747607993742,3.30461,2426.8,2426.7,2.6504]
[1747607994137,4.03148,2426.9,2426.7,2.77916271]
[1747607994337,0.82369,2426.8,2426.7,2.6504]
[1747607994538,0.82369,2426.8,2426.7,2.77916296]
[1747607994945,0.82369,2426.8,2426.7,0.12876296]
[1747607995146,2.4809,2426.8,2426.5,2.6504]
[1747607995447,3.2078,2426.9,2426.6,0.1287701]
[1747607995648,0.8237,2426.8,2426.7,2.78526461]
[1747607995940,3.2078,2426.9,2426.7,2.78526461]
[1747607996140,4.03146,2426.9,2426.8,0.12876461]
[1747607996342,4.03146,2426.9,2426.8,0.12875899]
[1747607996848,0.82366,2426.9,2426.8,0.12875899]
[1747607997541,3.2078,2427.2,2426.8,2.78525899]
[1747607997746,3.2078,2427.2,2426.8,2.6565]
[1747607997949,0.82362,2427.0,2426.8,2.6565]
[1747607998149,0.82365,2426.9,2426.8,2.6565]
[1747607998341,0.82364,2427.0,2426.8,2.78525537]
[1747607998649,0.82364,2427.0,2426.8,2.6565]
[1747607998849,0.82365,2427.0,2426.8,2.6565]
[1747607999039,3.51971,2427.1,2426.8,3.48018]
[1747607999245,0.82363,2427.0,2426.8,3.48018]
[1747607999449,3.51972,2427.1,2426.8,2.6565]
[1747607999649,3.51972,2427.1,2426.9,0.1287527]
[1747607999847,3.51972,2427.1,2427.0,2.6837]
[1747608003456,3.2078,2427.2,2427.0,2.6837]
[1747608003962,4.03136,2427.2,2427.1,0.12874537]
[1747608004457,4.03136,2427.2,2427.1,2.61534537]
[1747608004856,6.67816,2427.2,2427.1,2.61534537]
[1747608005460,3.2078,2427.2,2427.1,2.61534537]
[1747608005858,4.03135,2427.2,2427.1,2.61534537]
[1747608006561,4.03135,2427.2,2427.1,0.12874537]
[1747608006753,6.67815,2427.2,2427.1,0.12874537]
[1747608007151,3.2078,2427.2,2427.1,0.95233537]
[1747608007352,3.2078,2427.7,2427.1,12.78674387]
[1747608007557,0.82343,2427.6,2427.3,0.8235]
[1747608007758,0.82343,2427.6,2427.4,2.79234387]
[1747608008056,5.074,2427.9,2427.5,0.12874387]
[1747608008256,0.82338,2427.7,2427.6,2.79234387]
[1747608008452,0.82338,2427.7,2427.6,15.45034387]
[1747608008964,4.03116,2427.8,2427.6,15.45034387]
[1747608009155,4.03116,2427.8,2427.7,0.12871675]
[1747608010761,2.05853,2427.7,2427.2,12.657]
[1747608010956,0.82349,2427.4,2427.3,0.12872657]
[1747608011261,2.5375,2427.7,2427.3,0.12873848]
[1747608011457,4.03125,2427.5,2427.4,2.71253848]
[1747608012160,4.03125,2427.5,2427.4,0.12873848]
[1747608012354,0.82362,2427.0,2426.9,15.2398]
[1747608012554,0.82362,2427.0,2426.9,2.7125436]
[1747608012858,0.82362,2427.0,2426.9,2.71255302]
[1747608013250,3.2078,2427.2,2426.9,2.71255302]
[1747608013456,0.09218003,2427.1,2427.0,0.95237302]
[1747608013664,9.856,2427.6,2427.0,0.95237302]
[1747608013665,9.856,2427.6,2427.0,18.46195302]
[1747608013863,9.856,2427.6,2427.4,0.82347]
[1747608014058,5.838,2427.9,2427.5,12.78475302]
[1747608014260,4.03113,2427.9,2427.6,0.95215302]
[1747608014561,3.29998003,2427.9,2427.8,0.82335]
[1747608014757,3.29998003,2427.9,2427.8,0.12870365]
[1747608015064,3.29998003,2427.9,2427.8,0.95205365]
[1747608015265,3.29998003,2427.9,2427.8,0.12870365]
[1747608015459,3.2078,2427.9,2427.8,0.12870365]
[1747608015867,4.03112,2427.9,2427.8,0.12870365]
[1747608016156,8.2797,2428.3,2427.8,0.12870365]
[1747608016360,0.82331,2428.0,2427.9,0.12870365]
[1747608016565,0.82331,2428.0,2427.9,0.12869709]
[1747608017764,4.03111,2428.0,2427.9,0.12869709]
[1747608018162,3.2078,2428.3,2427.9,0.12869709]
[1747608018362,3.2078,2428.3,2428.0,0.12869709]
[1747608018363,0.82328,2428.1,2428.0,0.12869709]
[1747608019063,0.82322,2428.2,2428.0,0.12869709]
[1747608019259,3.2078,2428.3,2428.2,0.82321]
[1747608019559,2.6331,2428.6,2428.3,0.82315]
[1747608019759,2.53,2428.7,2428.4,0.12869237]
[1747608020065,0.82305,2428.7,2428.5,0.12869237]
[1747608020361,0.82306,2428.7,2428.4,0.82313]
[1747608020661,3.2078,2429.3,2428.8,0.82301]
[1747608020858,5.61229135,2429.5,2428.9,15.99046556]
[1747608021059,5.61229135,2429.5,2429.4,0.82281]
[1747608021260,5.61229135,2429.5,2429.4,13.60447556]
[1747608021464,5.61229135,2429.5,2429.4,0.12866556]
[1747608021659,8.82009135,2429.5,2429.1,2.6011]
[1747608021963,0.82284,2429.3,2429.2,12.653]
[1747608022157,2.4162,2429.4,2429.0,2.4791]
[1747608022357,2.4162,2429.4,2429.1,12.653]
[1747608022754,0.82288,2429.2,2429.0,2.4791]
[1747608022961,0.82286,2429.3,2429.1,12.653]
[1747608023159,3.23902,2429.4,2429.1,12.653]
[1747608023367,0.82285,2429.3,2429.2,12.653]
[1747608023553,3.23903,2429.4,2429.2,12.653]
[1747608023760,3.2078,2429.8,2429.2,12.653]
[1747608023958,0.82275,2429.6,2429.2,12.653]
[1747608024460,2.3999,2429.7,2429.2,12.653]
[1747608024662,2.3999,2429.7,2429.3,0.82282]
[1747608024868,2.3999,2429.7,2429.0,3.30204]
[1747608025061,0.82277,2429.5,2429.4,12.651]
[1747608025262,0.82277,2429.5,2429.1,0.82291]
[1747608025571,0.82276,2429.6,2429.2,0.82286]
[1747608025763,0.82276,2429.6,2429.3,12.651]
[1747608025964,2.3999,2429.7,2429.3,12.651]
[1747608026163,0.82276,2429.6,2429.3,12.651]
[1747608026466,3.2078,2429.8,2429.4,0.8228]
[1747608026467,4.0305,2429.8,2429.4,0.8228]
[1747608026666,3.2078,2429.8,2429.3,13.47382]
[1747608026859,3.2078,2429.4,2428.8,34.602]
[1747608027061,4.03078,2428.9,2428.8,47.253]
[1747608027369,3.2078,2428.9,2428.8,34.602]
[1747608027869,4.03078,2428.9,2428.8,34.602]
[1747608028070,6.47308,2428.9,2428.8,34.602]
[1747608028570,5.6501,2428.9,2428.8,34.602]
[1747608029170,3.2078,2428.9,2428.8,34.602]
[1747608029465,4.03078,2428.9,2428.8,34.602]
[1747608029670,4.03078,2428.9,2428.8,47.098]
[1747608030567,0.82312,2428.5,2428.3,3.2078]
[1747608030769,0.82311,2428.5,2428.4,12.496]
[1747608031271,3.2078,2428.6,2428.4,12.496]
[1747608031471,3.34083,2428.8,2428.4,13.31913]
[1747608031861,0.82306,2428.7,2428.5,2.5872]
[1747608032461,3.34084,2428.8,2428.5,2.5872]
[1747608032664,0.82305,2428.7,2428.5,2.5872]
[1747608032864,0.82305,2428.7,2428.6,12.496]
[1747608033163,3.2078,2429.0,2428.6,12.496]
[1747608033364,2.5738,2429.2,2428.7,2.71584718]
[1747608033668,0.82301,2428.9,2428.7,2.5872]
[1747608033865,0.82301,2428.8,2428.7,2.5872]
[1747608034174,4.03081,2428.8,2428.7,2.5872]
[1747608034560,3.29998003,2428.8,2428.3,2.5381]
[1747608034870,0.82318,2428.3,2428.2,12.496]
[1747608036269,3.43196,2428.4,2428.2,12.496]
[1747608036466,3.43196,2428.4,2428.3,2.4796]
[1747608036666,2.6088,2428.4,2428.3,2.4796]
[1747608036875,3.43195,2428.4,2428.3,2.4796]
[1747608037576,2.6088,2428.4,2428.3,2.4796]
[1747608037873,3.43195,2428.4,2428.3,2.4796]
[1747608038072,4.03093,2428.5,2428.3,2.4796]
[1747608038373,0.82315,2428.4,2428.3,2.4796]
[1747608038973,0.82315,2428.4,2428.3,14.9756]
[1747608039171,0.82313,2428.5,2428.3,14.9756]
[1747608039377,3.2078,2428.6,2428.3,14.9756]
[1747608039677,4.03088,2428.6,2428.3,15.79877]
[1747608039969,0.82313,2428.5,2428.3,14.9756]
[1747608040175,3.2078,2428.6,2428.3,14.9756]
[1747608040669,0.82312,2428.5,2428.3,14.9756]
[1747608040875,0.82315,2428.4,2428.3,14.9766]
[1747608041079,0.82313,2428.5,2428.3,14.9766]
[1747608041282,3.2078,2428.6,2428.3,14.9766]
[1747608041574,4.03089,2428.6,2428.3,15.79976]
[1747608041766,0.09218003,2428.8,2428.4,0.12866905]
[1747608041964,0.82306,2428.7,2428.5,2.64466905]
[1747608042176,0.09218003,2428.8,2428.6,0.12865971]
[1747608042372,0.09218003,2428.8,2428.7,2.516]
[1747608042572,0.91519003,2428.8,2428.7,2.64465652]
[1747608042971,0.09218003,2428.8,2428.7,2.64464926]
[1747608043575,0.09218003,2428.8,2428.7,3.46769926]
[1747608044877,0.09218003,2428.8,2428.7,3.46769594]
[1747608045078,0.09218003,2428.8,2428.7,6.67549594]
[1747608045677,0.91519003,2428.8,2428.7,2.64464594]
[1747608045878,0.09218003,2428.8,2428.7,15.96368594]
[1747608046083,3.2078,2429.4,2429.3,0.82284]
[1747608046381,3.2078,2429.4,2429.3,13.44748594]
[1747608046776,3.2078,2429.4,2429.3,13.44745485]
[1747608047477,0.82273,2429.7,2429.4,0.82279]
[1747608047682,0.82273,2429.7,2429.5,3.41708485]
[1747608047981,0.82269,2429.8,2429.6,0.95134521]
[1747608048180,0.82269,2429.8,2429.7,2.4657]
[1747608048979,7.39,2429.9,2429.7,2.4657]
[1747608049280,4.8565,2429.9,2429.8,12.494]
[1747608049678,4.8565,2429.9,2429.8,14.9597]
[1747608050176,4.8565,2429.9,2429.8,15.78237]
[1747608050378,3.2078,2430.0,2429.8,14.9597]
[1747608050582,12.385,2430.5,2429.8,14.9597]
[1747608050583,4.07064408,2430.9,2430.2,2.05628]
[1747608050777,6.49744408,2430.9,2430.6,0.82238]
[1747608050979,6.49744408,2430.9,2430.7,3.39990979]
[1747608051185,6.49744408,2430.9,2430.8,14.942]
[1747608051586,6.49744408,2430.9,2430.8,3.27133]
[1747608051777,14.70524408,2430.9,2430.4,3.2078]
[1747608052084,0.82242,2430.6,2430.4,14.942]
[1747608052381,2.5239,2430.8,2430.4,2.449]
[1747608052580,0.82241,2430.6,2430.4,14.942]
[1747608052784,2.4268,2430.5,2430.4,14.942]
[1747608052987,3.26157,2431.0,2430.4,15.07056423]
[1747608053182,0.82231,2430.9,2430.5,0.12856423]
[1747608053382,2.3838,2430.9,2430.6,2.4714]
[1747608053582,0.82237,2430.7,2430.2,4.03032]
[1747608053784,2.3838,2430.6,2430.3,14.9644]
[1747608053980,2.3838,2430.6,2430.3,15.7869]
[1747608054381,2.3838,2430.6,2430.4,0.82245]
[1747608054576,2.3838,2430.6,2430.5,2.4714]
[1747608054777,2.3838,2430.6,2430.5,3.29384]
[1747608054977,2.3838,2430.6,2430.5,2.4714]
[1747608055677,2.3838,2430.6,2430.2,3.2078]
[1747608055678,0.8225,2430.3,2430.2,3.2078]
[1747608055883,0.09218003,2429.7,2429.6,4.03053]
[1747608056188,0.09218003,2429.7,2429.6,16.65012483]
[1747608056388,3e-08,2429.7,2429.6,16.65012483]
[1747608056594,0.82224,2431.1,2430.7,0.82235]
[1747608056890,7.426,2431.3,2430.8,2.3884]
[1747608057279,4.07064408,2431.8,2431.0,3.2078]
[1747608057479,4.07064408,2431.8,2431.3,3.2078]
[1747608057684,3.2078,2431.5,2431.1,12.49]
[1747608057989,3.2078,2431.5,2430.9,3.2078]
[1747608057990,0.82223,2431.1,2431.0,14.8784]
[1747608058583,0.82223,2431.1,2431.0,12.49]
[1747608058783,0.82227,2431.0,2430.9,2.3884]
[1747608059089,0.82237,2430.7,2430.6,3.2078]
[1747608059293,0.82237,2430.7,2430.6,3.33634787]
[1747608059490,0.82237,2430.7,2430.6,3.2078]
[1747608059687,0.82235,2430.8,2430.6,15.5528]
[1747608060087,4.11031,2431.7,2430.6,15.5528]
[1747608060088,3.2078,2431.8,2430.7,4.47698531]
[1747608060290,3.2078,2431.8,2431.2,3.2078]
[1747608060486,3.2078,2431.5,2430.9,3.2078]
[1747608060696,0.82227,2431.0,2430.9,12.343]
[1747608061192,4.9603,2431.3,2430.9,15.5508]
[1747608061493,5.78248,2431.3,2431.0,14.7827]
[1747608061686,0.82221,2431.2,2431.0,14.7827]
[1747608061883,8.1681,2431.3,2431.1,12.343]
[1747608062080,4.9603,2431.3,2431.1,14.7827]
[1747608062285,4.9603,2431.3,2430.6,3.2078]
[1747608062488,4.9603,2431.3,2430.7,14.9115]
[1747608062489,0.82229,2431.0,2430.7,14.9115]
[1747608062787,3.2078,2431.1,2430.8,12.343]
[1747608062992,3.3646,2430.9,2430.8,12.343]
[1747608063590,0.82237,2430.7,2430.6,2.5685]
[1747608063785,0.82233,2430.9,2430.6,14.9105]
[1747608064280,2.5423,2431.1,2430.6,18.1183]
[1747608064489,2.5423,2431.1,2430.7,0.82236]
[1747608064688,0.8223,2430.9,2430.8,2.5685]
[1747608065196,0.09218003,2430.9,2430.8,2.5685]
[1747608066686,3.2078,2431.5,2430.8,7.5685]
[1747608066886,2.5323,2431.8,2431.4,3.2078]
[1747608067094,2.5323,2431.8,2431.5,2.5556]
[1747608067294,0.82203,2431.7,2431.6,12.341]
[1747608067781,3.35833,2431.7,2431.6,12.341]
[1747608069887,0.82203,2431.7,2431.6,12.341]
[1747608070285,5.0995,2431.9,2431.6,12.341]
[1747608070485,3.2078,2431.7,2431.0,5.6038]
[1747608070684,3.2078,2431.4,2430.9,0.82228]
[1747608070888,0.82216,2431.4,2431.0,6.49005]
[1747608071087,0.82216,2431.4,2431.1,0.82223]
[1747608071394,2.5136,2431.6,2431.2,2.4712]
[1747608071888,0.82215,2431.4,2431.2,2.4712]
[1747608072196,0.82212,2431.5,2431.2,2.4712]
[1747608072699,3.2078,2432.0,2431.4,3.2078]
[1747608072888,0.8221,2431.5,2431.4,15.5468]
[1747608073090,0.82216,2431.3,2431.2,2.4712]
[1747608073393,5.4513,2431.9,2431.2,12.339]
[1747608073586,0.82204,2431.7,2431.3,3.2078]
[1747608073785,0.82204,2431.7,2431.4,2.4597]
[1747608073987,0.822,2431.8,2431.4,2.4597]
[1747608074186,0.82206,2431.7,2431.4,2.4597]
[1747608074488,5.4513,2431.9,2431.5,12.339]
[1747608074691,2.3851,2431.8,2431.5,12.339]
[1747608074891,0.82206,2431.7,2431.5,12.339]
[1747608076891,3.2078,2431.6,2430.7,3.2078]
[1747608077102,0.8223,2430.9,2430.8,12.338]
[1747608077300,0.91448003,2430.9,2430.8,12.338]
[1747608077596,0.91448003,2430.9,2430.8,12.46654163]
[1747608077998,0.09218003,2430.9,2430.8,12.46654163]
[1747608078192,0.09218003,2430.9,2430.8,12.46654358]
[1747608078595,4.12229003,2430.9,2430.8,0.12854358]
[1747608078790,3.29998003,2430.9,2430.8,0.12854358]
[1747608079096,0.91449003,2430.9,2430.8,0.12854358]
[1747608080099,0.82237,2430.8,2430.4,12.339]
[1747608080300,0.8224,2430.7,2430.5,0.12855571]
[1747608080597,0.8224,2430.7,2430.6,0.12855571]
[1747608080796,0.09218003,2430.9,2430.6,3.33635571]
[1747608080992,0.09218003,2430.9,2430.8,0.82234]
[1747608081305,0.09218003,2430.9,2430.8,1.27808149]
[1747608081502,0.09218003,2430.9,2430.8,6.27808149]
[1747608081997,0.09218003,2430.9,2430.8,5.82234]
[1747608082203,0.09218003,2430.9,2430.8,6.27781067]
[1747608082404,0.09218003,2430.9,2430.8,7.51661941]
[1747608083098,0.91449003,2430.9,2430.8,1.36732797]
[1747608083298,0.91449003,2430.9,2430.8,13.70632797]
[1747608084003,0.82241,2430.6,2430.5,1.20814365]
[1747608084200,0.82248,2430.4,2430.3,1.61540409]
[1747608084400,0.82258,2430.1,2430.0,2.43369846]
[1747608084603,0.82261,2430.0,2429.9,12.339]
[1747608084906,0.82271,2429.7,2429.5,12.339]
[1747608085602,0.8227,2429.8,2429.5,12.339]
[1747608085800,0.82271,2429.7,2429.5,12.339]
[1747608086704,4.03051,2429.7,2429.2,46.892]
[1747608087001,0.82285,2429.3,2429.2,12.339]
[1747608089512,0.82285,2429.3,2428.8,12.212]
[1747608089513,12.211,2429.3,2428.8,12.212]
[1747608089702,2.5184,2429.2,2428.8,12.212]
[1747608090214,0.82292,2429.1,2428.8,12.212]
[1747608091212,5.2651,2429.1,2428.4,3.2078]
[1747608091417,3.2078,2428.8,2428.0,12.214]
[1747608091617,0.82318,2428.4,2428.1,12.214]
[1747608091914,0.82322,2428.3,2428.1,12.214]
[1747608092115,0.82322,2428.3,2428.2,2.5095]
[1747608093012,4.8202,2428.7,2428.2,2.5095]
[1747608093314,12.197,2428.6,2428.2,2.5095]
[1747608093619,0.82317,2428.4,2428.2,2.5095]
[1747608094019,0.82319,2428.3,2428.2,2.5095]
[1747608094217,0.82318,2428.4,2428.2,2.5095]
[1747608094412,0.82319,2428.3,2428.2,2.5095]
[1747608095517,0.91537003,2428.3,2428.2,2.5095]
[1747608096322,0.82342,2427.7,2427.6,3.2078]
[1747608096616,5.93183,2428.2,2427.7,0.82338]
[1747608096818,12.185,2428.0,2427.8,2.4592]
[1747608097020,0.82332,2427.9,2427.8,2.4592]
[1747608097218,0.82339,2427.7,2427.6,3.2078]
[1747608097421,2.5305,2427.9,2427.6,3.2078]
[1747608097622,2.2794,2428.0,2427.7,2.4592]
[1747608097923,0.09218003,2428.3,2428.0,0.82326]
[1747608098218,0.09218003,2428.3,2428.1,2.4592]
[1747608098422,0.09218003,2428.3,2428.1,3.28244]
[1747608098719,0.09218003,2428.3,2428.2,4.03102]
[1747608099121,12.99895,2429.1,2428.2,8.2078]
[1747608099423,0.82308,2428.7,2428.5,3.2078]
[1747608099617,0.82308,2428.7,2428.6,2.4519]
[1747608099822,0.82315,2428.4,2428.3,12.219]
[1747608100114,0.82317,2428.4,2428.2,2.4519]
[1747608100510,0.09218003,2428.3,2428.2,2.4519]
[1747608100708,8.0653,2429.2,2428.2,2.4519]